bitfinex/quotes_SOLUSD_20240626
["timestamp","ask_amount","ask_price","bid_price","bid_amount"]
[1719436322873,17.9,137.22,137.19,25.5116]
[1719436324260,17.9,137.22,137.2,7.2885]
[1719436327978,17.9,137.22,137.19,25.5116]
[1719436331880,7.287,137.23,137.19,25.5116]
[1719436332121,7.2867,137.24,137.2,7.2886]
[1719436333170,17.9,137.22,137.2,7.2886]
[1719436334281,17.9,137.21,137.16,24.6307]
[1719436334494,27.2883,137.21,137.17,7.2902]
[1719436334887,20.0,137.21,137.16,18.2265]
[1719436335076,7.2893,137.19,137.16,18.2265]
[1719436336074,7.2888,137.2,137.16,25.5172]
[1719436336281,20.0,137.23,137.17,7.2901]
[1719436336282,7.2882,137.21,137.17,7.2901]
[1719436336483,20.0,137.2,137.17,7.2901]
[1719436337398,27.2886,137.2,137.16,25.517]
[1719436342382,17.9,137.18,137.16,25.517]
[1719436351909,27.2886,137.2,137.16,25.517]
[1719436352687,7.2891,137.19,137.16,25.517]
[1719436353286,7.2891,137.19,137.16,18.2265]
[1719436355010,7.2891,137.19,137.16,25.5171]
[1719436355721,27.2887,137.2,137.16,25.5171]
[1719436359016,27.2887,137.2,137.11,15.5385]
[1719436359017,17.9,137.17,137.11,15.5385]
[1719436359197,7.2918,137.14,137.1,7.2937]
[1719436360011,7.2918,137.14,137.1,25.5285]
[1719436360196,15.7007,137.15,137.06,0.7771878]
[1719436360407,17.9,137.09,137.07,18.2381]
[1719436360718,17.9,137.09,137.07,25.5333]
[1719436361419,17.9,137.1,137.09,7.2944]
[1719436361619,7.2925,137.13,137.09,7.2944]
[1719436361805,20.0,137.12,137.09,7.2944]
[1719436362005,17.9,137.11,137.09,7.2944]
[1719436363514,17.9,137.11,137.08,7.2948]
[1719436367106,25.1935,137.11,137.07,25.5334]
[1719436367510,20.0,137.12,137.07,18.2381]
[1719436367810,7.2929,137.12,137.08,7.6347]
[1719436368007,20.0,137.11,137.08,7.4647]
[1719436376251,20.0,137.11,137.08,7.2947]
[1719436378330,27.2934,137.11,137.08,7.2947]
[1719436378625,45.1934,137.11,137.08,7.2947]
[1719436378823,37.9,137.11,137.08,7.2947]
[1719436380337,20.0,137.11,137.08,7.2947]
[1719436384228,27.2935,137.11,137.08,7.2947]
[1719436385338,25.1939,137.1,137.07,25.5334]
[1719436385511,7.2945,137.09,137.06,8.0729878]
[1719436385718,17.9,137.08,137.06,0.7771878]
[1719436386026,17.9,137.07,137.06,0.7771878]
[1719436386229,7.2945,137.09,137.06,0.7771878]
[1719436386230,17.9,137.08,137.06,8.0731878]
[1719436386836,7.2945,137.09,137.06,8.0731878]
[1719436388039,7.2941,137.1,137.06,8.0731878]
[1719436388834,27.2936,137.11,137.07,7.2954]
[1719436389026,17.9,137.09,137.07,7.2954]
[1719436389221,7.2939,137.1,137.06,8.0730878]
[1719436390647,27.2946,137.09,137.06,0.7771878]
[1719436390940,7.2946,137.09,137.06,8.0731878]
[1719436391336,7.2941,137.1,137.06,8.0731878]
[1719436391543,20.0,137.09,137.06,8.0731878]
[1719436392421,20.0,137.09,137.08,25.5325]
[1719436392651,20.0,137.09,137.08,18.2375]
[1719436392859,20.0,137.09,137.07,7.2953]
[1719436392860,37.9,137.09,137.07,7.2953]
[1719436393093,37.9,137.09,137.06,26.3129878]
[1719436394248,20.0,137.09,137.06,26.3129878]
[1719436395640,17.9,137.07,137.06,0.7771878]
[1719436401858,37.9,137.07,137.06,0.7771878]
[1719436402078,45.1955,137.07,137.06,0.7771878]
[1719436402972,63.0955,137.07,137.06,0.7771878]
[1719436403839,45.1955,137.07,137.06,0.7771878]
[1719436404951,16.2285,137.06,137.01,18.2456]
[1719436405150,17.9,137.02,137.0,7.2991]
[1719436405357,17.9,137.01,137.0,7.2991]
[1719436405748,17.9,137.01,136.99,18.2494]
[1719436405749,17.9,137.01,136.99,25.549]
[1719436406282,17.9,137.01,137.0,7.2992]
[1719436407750,17.9,137.01,136.99,18.2494]
[1719436407956,7.2981,137.03,136.99,25.5488]
[1719436408263,20.0,137.02,136.99,25.5488]
[1719436409859,20.0,137.02,137.0,7.2988]
[1719436410040,17.9,137.02,137.0,7.2988]
[1719436410363,17.9,137.02,136.99,18.2494]
[1719436410657,17.9,137.01,136.99,18.2494]
[1719436410860,17.9,137.01,136.99,25.5491]
[1719436411438,27.2979,137.03,136.99,25.5491]
[1719436411935,7.2988,137.01,136.97,7.3007]
[1719436412157,17.9,136.98,136.97,7.3007]
[1719436412466,7.2984,137.02,136.98,7.3002]
[1719436412646,20.0,137.01,136.98,7.3002]
[1719436413363,17.9,137.0,136.98,7.3002]
[1719436414143,17.9,137.0,136.98,6.8002]
[1719436417670,37.9,137.01,136.99,7.2998]
[1719436417866,20.0,137.01,136.99,7.2998]
[1719436418169,20.0,137.02,136.99,7.2998]
[1719436418768,27.2982,137.02,136.98,25.5507]
[1719436419360,45.1982,137.02,136.98,25.5507]
[1719436419557,37.9,137.02,136.99,7.2997]
[1719436421476,45.1982,137.02,136.99,7.2997]
[1719436423260,27.2982,137.02,136.98,25.5506]
[1719436425388,27.2982,137.02,136.97,0.17]
[1719436425389,20.0,137.02,137.0,18.2481]
[1719436425562,17.9,137.02,137.0,18.2481]
[1719436426265,17.9,137.02,136.99,7.2993]
[1719436426468,25.1982,137.02,136.99,7.2993]
[1719436427248,25.1982,137.02,136.98,18.2507]
[1719436427456,25.1982,137.02,136.98,25.5508]
[1719436428580,7.2982,137.02,136.98,25.5508]
[1719436429779,7.2982,137.02,136.99,7.2997]
[1719436431380,7.2977,137.03,136.99,7.2997]
[1719436431561,20.0,137.02,136.99,7.2997]
[1719436433682,27.2983,137.02,136.98,25.5507]
[1719436434371,27.2983,137.02,136.99,7.2997]
[1719436434987,20.0,137.02,136.99,7.2997]
[1719436436079,23.83427755,137.06,136.97,0.34]
[1719436436313,37.9,137.05,137.02,18.2455]
[1719436436486,7.2958,137.07,137.03,7.2976]
[1719436436677,17.9,137.06,137.03,7.2976]
[1719436436983,25.1958,137.07,137.03,7.2976]
[1719436437168,20.0,137.06,137.04,7.297]
[1719436438598,20.0,137.06,137.03,7.2974]
[1719436438776,45.196,137.06,137.03,7.2974]
[1719436438958,25.1966,137.05,137.02,25.5434]
[1719436441663,17.9,137.05,137.02,25.5434]
[1719436441858,17.9,137.05,137.03,7.2975]
[1719436442771,20.0,137.06,137.03,7.2975]
[1719436443385,27.296,137.06,137.03,7.2975]
[1719436444381,17.9,137.05,137.02,25.5434]
[1719436445699,27.296,137.06,137.03,7.2975]
[1719436445700,20.0,137.06,137.03,7.2975]
[1719436447991,20.0,137.06,137.04,7.2971]
[1719436448190,20.0,137.07,137.04,7.2971]
[1719436449688,20.0,137.07,137.02,18.2455]
[1719436449995,7.2963,137.06,137.02,25.5436]
[1719436454174,18.2375,137.08,137.01,7.2985]
[1719436454371,7.2968,137.05,137.01,7.2985]
[1719436454570,20.0,137.04,137.01,7.2985]
[1719436458478,17.9,137.02,137.0,18.248]
[1719436458875,17.9,137.01,137.0,18.248]
[1719436459175,27.2972,137.04,137.0,25.5472]
[1719436459379,17.9,137.02,137.0,25.5472]
[1719436461310,27.2972,137.04,137.0,18.248]
[1719436461311,17.9,137.01,137.0,18.248]
[1719436461697,17.9,137.01,136.99,7.2995]
[1719436462788,17.9,137.01,136.97,35.91664318]
[1719436462974,17.9,137.01,136.98,7.3001]
[1719436463391,17.9,137.01,136.99,7.2998]
[1719436466787,25.1993,137.0,136.97,18.2508]
[1719436466981,27.2993,137.0,136.97,18.2508]
[1719436467182,7.2993,137.0,136.97,18.2508]
[1719436468904,7.2989,137.01,136.97,25.5516]
[1719436469089,20.0,137.0,136.97,25.5516]
[1719436471403,27.2994,137.0,136.94,34.0462]
[1719436471699,7.2994,137.0,136.96,7.3013]
[1719436471893,27.3,136.99,136.95,7.3018]
[1719436472488,20.0,136.99,136.96,7.3013]
[1719436473200,27.2999,136.99,136.95,7.3018]
[1719436474003,45.1999,136.99,136.95,7.3018]
[1719436476395,45.1999,136.99,136.93,0.8467053]
[1719436476396,7.3023,136.95,136.93,0.8467053]
[1719436476605,17.9,136.96,136.93,0.8467053]
[1719436476606,45.2024,136.94,136.93,0.8467053]
[1719436481801,37.9,136.94,136.93,0.8467053]
[1719436483320,45.2024,136.94,136.93,0.8467053]
[1719436489329,37.9,136.94,136.93,0.8467053]
[1719436490435,45.2024,136.94,136.93,0.8467053]
[1719436495732,18.2522,136.97,136.93,0.8467053]
[1719436495733,7.3009,136.97,136.93,0.8467053]
[1719436495911,20.0,136.96,136.93,0.8467053]
[1719436496308,37.9,136.96,136.93,0.8467053]
[1719436496513,25.2019,136.95,136.93,0.8467053]
[1719436497017,25.2024,136.94,136.93,0.8467053]
[1719436497225,17.9,136.94,136.93,0.8467053]
[1719436497542,7.3021,136.95,136.93,0.8467053]
[1719436497719,17.9,136.94,136.93,0.8467053]
[1719436501931,25.2024,136.94,136.93,0.8467053]
[1719436502134,45.2024,136.94,136.93,0.8467053]
[1719436503641,37.9,136.94,136.93,0.8467053]
[1719436504725,20.0,136.94,136.93,8.1497053]
[1719436504931,7.3,136.99,136.95,25.5563]
[1719436505243,20.0,136.96,136.95,25.5563]
[1719436510523,20.0,136.96,136.93,0.8467053]
[1719436510861,17.9,136.95,136.93,0.8467053]
[1719436511365,17.9,136.95,136.93,8.1495053]
[1719436514734,17.9,136.95,136.94,7.3024]
[1719436515358,27.3005,136.98,136.94,7.3024]
[1719436517618,17.9,136.95,136.94,7.3024]
[1719436519240,27.3005,136.98,136.94,7.3024]
[1719436519438,20.0,136.98,136.94,18.2558]
[1719436519641,27.2998,136.99,136.95,7.3017]
[1719436519825,17.9,136.97,136.95,7.3017]
[1719436520024,20.0,136.96,136.94,25.5581]
[1719436520640,20.0,136.96,136.95,7.3019]
[1719436520948,20.0,136.96,136.94,25.5581]
[1719436521157,17.9,136.96,136.94,25.5581]
[1719436521340,17.9,136.96,136.94,18.2558]
[1719436521855,20.0,136.97,136.94,18.2558]
[1719436522428,27.301,136.97,136.93,0.8467053]
[1719436522655,17.9,136.95,136.93,0.8467053]
[1719436523454,17.9,136.94,136.93,0.8467053]
[1719436524352,25.2024,136.94,136.93,0.8467053]
[1719436524941,45.2024,136.94,136.93,0.8467053]
[1719436527255,7.3047,136.9,136.85,25.5739]
[1719436527453,17.9,136.87,136.85,25.5739]
[1719436527770,17.9,136.86,136.82,18.2714]
[1719436527931,17.9,136.86,136.84,7.35070186]
[1719436528267,17.9,136.86,136.85,7.3072]
[1719436529863,17.9,136.87,136.85,7.3072]
[1719436530963,7.3048,136.9,136.86,7.3066]
[1719436531141,20.0,136.89,136.86,7.3066]
[1719436531342,20.0,136.89,136.87,7.3061]
[1719436531644,17.9,136.88,136.87,7.3061]
[1719436531847,37.9,136.88,136.86,25.5731]
[1719436534249,20.0,136.88,136.87,7.3062]
[1719436534447,20.0,136.88,136.86,25.5732]
[1719436534647,20.0,136.88,136.85,7.3071]
[1719436535660,20.0,136.88,136.84,0.04330186]
[1719436535861,37.9,136.88,136.84,0.38330186]
[1719436536158,7.3062,136.87,136.84,0.04330186]
[1719436536377,20.0,136.88,136.84,0.04330186]
[1719436536558,20.0,136.91,136.84,0.04330186]
[1719436537259,7.3065,136.87,136.84,0.04330186]
[1719436537765,7.3058,136.88,136.84,0.04330186]
[1719436538960,17.9,136.86,136.84,0.04330186]
[1719436539161,17.9,136.86,136.84,7.35110186]
[1719436544659,17.9,136.86,136.85,7.3072]
[1719436545057,7.3053,136.89,136.85,7.3072]
[1719436545373,20.0,136.88,136.85,7.3072]
[1719436546862,20.0,136.88,136.84,7.35090186]
[1719436547272,27.3057,136.88,136.84,7.35090186]
[1719436552568,20.0,136.88,136.84,0.04330186]
[1719436552795,7.3063,136.87,136.84,0.04330186]
[1719436553174,7.3059,136.88,136.84,0.04330186]
[1719436553369,20.0,136.87,136.84,0.04330186]
[1719436554882,20.0,136.87,136.84,7.35100186]
[1719436556409,27.3063,136.87,136.84,0.04330186]
[1719436556557,20.0,136.87,136.84,0.04330186]
[1719436557479,27.3062,136.87,136.84,0.04330186]
[1719436558186,17.9,136.86,136.84,0.04330186]
[1719436559570,17.9,136.86,136.84,7.35100186]
[1719436560085,17.9,136.86,136.84,0.04330186]
[1719436560994,20.0,136.87,136.84,7.35100186]
[1719436562383,17.9,136.86,136.84,7.35100186]
[1719436563412,20.0,136.87,136.85,7.3072]
[1719436563598,20.0,136.88,136.85,7.3072]
[1719436563947,17.9,136.86,136.85,7.3072]
[1719436565486,17.9,136.86,136.84,25.61920186]
[1719436565681,20.0,136.85,136.84,0.04330186]
[1719436566009,37.9,136.85,136.84,0.04330186]
[1719436567407,15.1913,136.91,136.84,0.04330186]
[1719436567706,20.0,136.9,136.84,0.04330186]
[1719436568408,7.3052,136.89,136.85,7.3072]
[1719436568714,37.9,136.88,136.85,7.3072]
[1719436568892,37.9,136.88,136.84,7.35090186]
[1719436569707,45.2057,136.88,136.84,7.35090186]
[1719436569912,25.2062,136.87,136.84,0.04330186]
[1719436570392,7.3062,136.87,136.84,0.04330186]
[1719436571692,17.9,136.85,136.84,0.04330186]
[1719436571892,25.2072,136.85,136.84,0.04330186]
[1719436572088,17.9,136.85,136.84,0.04330186]
[1719436573917,17.9,136.86,136.84,0.04330186]
[1719436574445,20.0,136.88,136.84,0.04330186]
[1719436574797,20.0,136.88,136.84,7.35090186]
[1719436575299,27.3058,136.88,136.84,7.35090186]
[1719436575711,20.0,136.88,136.86,7.3066]
[1719436575913,17.9,136.88,136.86,7.3066]
[1719436576114,20.0,136.87,136.85,25.5749]
[1719436576794,20.0,136.88,136.85,25.5749]
[1719436579215,20.0,136.88,136.85,18.2678]
[1719436580111,25.207,136.86,136.84,0.04330186]
[1719436580612,17.9,136.86,136.84,0.04330186]
[1719436581012,17.9,136.85,136.84,0.04330186]
[1719436582811,37.9,136.85,136.84,0.04330186]
[1719436584124,45.2072,136.85,136.84,0.04330186]
[1719436585415,37.9,136.85,136.84,0.04330186]
[1719436587302,20.0,136.85,136.84,0.04330186]
[1719436587639,37.9,136.85,136.84,0.04330186]
[1719436588817,22.76739376,136.91,136.84,0.04330186]
[1719436589031,30.07159376,136.91,136.86,7.3064]
[1719436589203,17.9,136.88,136.86,7.3064]
[1719436589519,20.0,136.87,136.86,7.3064]
[1719436590302,30.8362359,136.92,136.88,18.2639]
[1719436590541,15.5995,136.95,136.9,7.3046]
[1719436590542,22.9015,136.95,136.9,7.3046]
[1719436590798,6.83232931,136.96,136.92,7.3031]
[1719436590809,20.0,136.94,136.92,7.3031]
[1719436590920,17.9,136.96,136.93,7.303]
[1719436591315,17.9,136.96,136.92,25.5619]
[1719436592531,20.0,136.95,136.93,7.3029]
[1719436592835,20.0,136.95,136.92,18.2586]
[1719436592836,17.9,136.97,136.94,7.3023]
[1719436593326,7.3,136.99,136.95,7.3018]
[1719436593520,7.2994,137.0,136.95,7.3018]
[1719436593910,27.2998,136.99,136.95,7.3018]
[1719436594523,7.3014,136.96,136.92,23.7902]
[1719436594714,7.301,136.97,136.92,23.7902]
[1719436595027,20.0,136.96,136.92,23.7902]
[1719436595411,37.9,136.96,136.92,23.7902]
[1719436596515,20.0,136.96,136.93,7.3028]
[1719436596724,20.0,136.96,136.94,7.3023]
[1719436597228,20.0,136.97,136.95,7.3019]
[1719436597525,37.9,136.97,136.93,18.257]
[1719436598320,45.201,136.97,136.93,25.5599]
[1719436600031,7.302,136.95,136.9,18.2614]
[1719436600330,37.9,136.94,136.9,18.2614]
[1719436600527,37.9,136.94,136.91,7.3038]
[1719436600734,37.9,136.94,136.9,25.5658]
[1719436600931,17.9,136.93,136.9,25.5658]
[1719436601124,20.0,136.94,136.91,7.3039]
[1719436601469,20.0,136.94,136.92,7.3035]
[1719436601633,20.0,136.95,136.92,7.3035]
[1719436602007,37.9,136.95,136.92,7.3035]
[1719436602617,20.0,136.95,136.93,7.3027]
[1719436602813,37.9,136.97,136.93,18.2561]
[1719436603118,20.0,136.97,136.93,18.2561]
[1719436603729,20.0,136.97,136.94,7.3022]
[1719436605243,20.0,136.97,136.95,7.3019]
[1719436606231,20.0,136.97,136.94,7.3023]
[1719436611325,20.0,136.98,136.94,7.3023]
[1719436612126,17.9,136.96,136.93,25.5589]
[1719436612320,17.9,136.94,136.9,18.2606]
[1719436612548,17.9,136.94,136.91,7.3037]
[1719436612851,17.9,136.93,136.91,7.3037]
[1719436614548,17.9,136.94,136.92,7.3034]
[1719436614937,17.9,136.94,136.93,7.303]
[1719436615321,37.9,136.95,136.93,7.303]
[1719436615526,20.0,136.95,136.94,7.3024]
[1719436616143,20.0,136.95,136.94,25.5585]
[1719436616340,17.9,136.97,136.95,7.3017]
[1719436616841,17.9,136.98,136.95,7.3017]
[1719436617055,20.0,136.97,136.95,7.3017]
[1719436618751,15.1369,137.01,136.96,18.2533]
[1719436618948,15.1369,137.01,136.97,7.3005]
[1719436618949,20.0,137.0,136.97,7.3005]
[1719436619863,37.9,137.0,136.97,7.3005]
[1719436625363,37.9,137.0,136.96,18.2533]
[1719436625561,20.0,137.0,136.99,7.2998]
[1719436627163,20.0,137.0,136.98,7.3001]
[1719436627350,20.0,137.01,136.98,7.3001]
[1719436627660,19.75448162,137.05,136.99,18.2493]
[1719436627869,37.9,137.04,137.01,7.2986]
[1719436628488,20.0,137.04,137.01,7.2986]
[1719436628676,7.2963,137.06,137.02,7.2981]
[1719436628845,20.0,137.05,137.03,7.2976]
[1719436629048,20.0,137.07,137.03,7.2976]
[1719436629247,20.0,137.07,137.04,7.297]
[1719436629676,7.2939,137.1,137.05,7.2964]
[1719436629971,20.0,137.09,137.05,7.2964]
[1719436630568,20.0,137.09,137.06,7.296]
[1719436630750,37.9,137.09,137.06,7.296]
[1719436631370,37.9,137.09,137.05,25.5376]
[1719436631956,20.0,137.09,137.05,25.5376]
[1719436632372,20.0,137.09,137.02,25.5431]
[1719436632373,7.2957,137.07,137.02,25.5431]
[1719436632568,20.0,137.06,137.02,25.5431]
[1719436632953,17.9,137.03,136.99,18.2489]
[1719436633279,27.2965,137.06,137.02,7.298]
[1719436633454,17.9,137.05,137.03,7.2976]
[1719436633649,17.9,137.05,137.04,7.2971]
[1719436633848,37.9,137.05,137.03,7.2973]
[1719436634064,17.9,137.05,137.03,7.2973]
[1719436634660,20.0,137.06,137.02,25.5422]
[1719436635576,20.0,137.06,137.03,7.2976]
[1719436637071,20.0,137.07,137.03,7.2976]
[1719436637786,27.2955,137.07,137.03,7.2976]
[1719436638289,27.2955,137.07,137.02,25.5422]
[1719436638678,55.85,137.07,136.98,22.8678]
[1719436638879,7.2977,137.03,136.99,7.2995]
[1719436639188,20.0,137.02,136.99,7.2995]
[1719436639684,20.0,137.03,136.99,7.2995]
[1719436639866,20.0,137.03,137.0,7.2992]
[1719436641282,20.0,137.04,137.0,7.2992]
[1719436642080,27.2972,137.04,136.99,25.5477]
[1719436643086,27.2972,137.04,137.0,7.2991]
[1719436643785,7.2978,137.03,136.99,18.2482]
[1719436643983,20.0,137.02,136.99,25.5478]
[1719436645485,20.0,137.03,136.99,25.5478]
[1719436647089,20.0,137.03,137.0,7.2991]
[1719436649892,27.2979,137.03,136.99,25.5478]
[1719436650086,27.2979,137.03,136.95,22.11774361]
[1719436650087,7.2992,137.0,136.96,18.2523]
[1719436650287,20.0,136.99,136.96,18.2523]
[1719436650995,20.0,136.99,136.96,25.5535]
[1719436652071,20.0,137.0,136.96,25.5535]
[1719436654706,17.95,136.97,136.96,25.5535]
[1719436655006,37.95,136.97,136.96,25.5535]
[1719436658406,37.95,136.97,136.95,7.37904361]
[1719436660612,20.0,136.97,136.95,7.37904361]
[1719436660915,20.0,136.98,136.95,7.37904361]
[1719436661454,20.0,136.99,136.95,7.37904361]
[1719436663013,20.0,136.99,136.96,7.3012]
[1719436665912,20.0,137.0,136.96,7.3012]
[1719436666093,17.95,136.98,136.96,7.3012]
[1719436666412,20.0,136.97,136.96,7.3012]
[1719436667411,20.0,136.97,136.95,25.63254361]
[1719436668411,20.0,136.97,136.96,7.3014]
[1719436670198,20.0,136.97,136.95,25.63244361]
[1719436670400,17.95,136.98,136.95,25.63244361]
[1719436670613,20.0,136.97,136.95,25.63244361]
[1719436671201,20.0,136.98,136.95,25.63244361]
[1719436671696,7.3012,136.97,136.95,0.07724361]
[1719436671905,17.95,136.96,136.95,0.07724361]
[1719436673312,27.3005,136.98,136.95,0.07724361]
[1719436673821,17.95,136.96,136.95,0.07724361]
[1719436677525,20.0,136.98,136.95,7.37914361]
[1719436677819,7.2998,136.99,136.95,7.37914361]
[1719436678009,20.0,136.98,136.95,7.37914361]
[1719436683211,20.0,136.98,136.95,0.07724361]
[1719436683416,7.301,136.97,136.95,0.07724361]
[1719436683624,37.95,136.96,136.95,0.07724361]
[1719436684130,45.2514,136.96,136.95,0.07724361]
[1719436687028,37.95,136.96,136.95,0.07724361]
[1719436687913,20.0,136.96,136.95,0.07724361]
[1719436688318,17.95,136.97,136.95,7.37914361]
[1719436688929,17.95,136.97,136.95,0.07724361]
[1719436689134,17.95,136.96,136.95,0.07724361]
[1719436689628,45.2514,136.96,136.95,0.07724361]
[1719436690018,37.95,136.96,136.95,0.07724361]
[1719436693040,17.95,136.99,136.96,7.3009]
[1719436693208,20.0,136.98,136.97,7.3007]
[1719436695447,24.89521877,137.04,136.98,7.3002]
[1719436695738,282.5764,137.06,137.0,18.2468]
[1719436695739,43.92403025,137.05,137.0,18.2468]
[1719436696044,20.0,137.04,137.02,7.2981]
[1719436696952,20.0,137.04,137.01,7.2985]
[1719436699143,37.95,137.05,137.01,7.2985]
[1719436700135,45.2466,137.05,137.01,7.2985]
[1719436700741,37.95,137.05,137.01,7.2985]
[1719436701351,37.95,137.05,137.02,7.298]
[1719436701640,20.0,137.05,137.03,7.2975]
[1719436701826,20.0,137.06,137.03,7.2975]
[1719436702538,20.0,137.06,137.02,18.2454]
[1719436702757,20.0,137.07,137.03,7.2972]
[1719436705453,17.95,137.06,137.05,0.07724361]
[1719436705634,37.95,137.06,137.05,0.07724361]
[1719436709549,45.246,137.06,137.05,0.07724361]
[1719436709728,63.196,137.06,137.05,0.07724361]
[1719436710237,81.4361,137.06,137.05,0.07724361]
[1719436711146,63.196,137.06,137.05,0.07724361]
[1719436712559,20.0,137.06,137.05,0.07724361]
[1719436713154,27.296,137.06,137.05,0.07724361]
[1719436714971,20.0,137.06,137.05,0.07724361]
[1719436716853,37.95,137.06,137.05,0.07724361]
[1719436718683,20.0,137.06,137.05,0.07724361]
[1719436722287,27.296,137.06,137.05,0.07724361]
[1719436722493,45.246,137.06,137.05,0.07724361]
[1719436731791,63.4861,137.06,137.05,0.07724361]
[1719436731993,7.2987,137.01,136.97,25.5513]
[1719436732183,7.2987,137.01,136.97,24.3808]
[1719436732489,20.0,137.0,136.97,24.3808]
[1719436732669,20.0,137.0,136.97,31.6815]
[1719436734789,20.0,137.01,136.97,31.6815]
[1719436736767,20.0,137.01,136.99,7.2997]
[1719436737088,20.0,137.02,136.98,7.3001]
[1719436737892,27.2983,137.02,136.98,7.3001]
[1719436741976,20.0,137.02,136.99,7.2997]
[1719436742383,20.0,137.02,136.98,7.3001]
[1719436742795,27.2982,137.02,136.98,7.3001]
[1719436743800,20.0,137.02,136.98,7.3001]
[1719436746296,20.0,137.02,136.96,15.8345]
[1719436746694,17.95,136.98,136.96,15.8345]
[1719436747375,20.0,137.02,136.96,23.1358]
[1719436747675,7.2989,137.01,136.97,7.3007]
[1719436747881,20.0,137.0,136.98,7.3003]
[1719436748199,20.0,137.0,136.99,7.2998]
[1719436749006,20.0,137.0,136.98,7.3001]
[1719436749192,20.0,137.02,136.98,7.3001]
[1719436749693,20.0,137.02,136.96,15.8345]
[1719436750005,7.2987,137.01,136.97,7.3006]
[1719436750204,17.95,136.98,136.97,7.3006]
[1719436750415,17.95,136.98,136.97,25.5516]
[1719436751778,7.2987,137.01,136.97,25.5516]
[1719436751981,17.95,136.99,136.97,25.5516]
[1719436755907,17.95,136.98,136.97,25.5516]
[1719436757903,37.95,136.98,136.94,54.7663]
[1719436758203,20.0,136.98,136.95,7.3016]
[1719436758510,20.0,136.97,136.95,7.3016]
[1719436759126,20.0,136.98,136.95,7.3016]
[1719436759309,20.0,136.99,136.94,18.2555]
[1719436759486,7.3004,136.98,136.94,25.5577]
[1719436759691,20.0,136.97,136.94,25.5577]
[1719436760911,20.0,136.98,136.94,25.5577]
[1719436761099,20.0,136.98,136.95,7.3019]
[1719436764117,27.3003,136.98,136.94,18.2555]
[1719436764406,20.0,136.98,136.94,25.5577]
[1719436767211,17.95,136.95,136.94,25.5577]
[1719436767421,20.0,136.98,136.95,7.3018]
[1719436767712,20.0,136.98,136.96,7.3013]
[1719436767912,7.2989,137.01,136.96,7.3013]
[1719436767913,17.95,136.97,136.96,7.3013]
[1719436768219,37.95,136.97,136.96,7.3013]
[1719436769621,20.0,136.97,136.96,7.3013]
[1719436771627,20.0,136.97,136.96,8.69991292]
[1719436773122,20.0,136.97,136.96,7.3013]
[1719436774699,20.0,136.97,136.95,25.5552]
[1719436774999,20.0,136.99,136.95,25.5552]
[1719436775810,27.2999,136.99,136.95,25.5552]
[1719436776019,17.95,136.98,136.95,25.5552]
[1719436776218,20.0,136.97,136.95,25.5552]
[1719436776526,37.95,136.97,136.95,25.5552]
[1719436787041,37.95,136.97,136.94,29.5221]
[1719436788037,20.0,136.97,136.94,29.5221]